[Event "MCR rapid mládeže 2023 U16"]
[Site "Harachov, Czech Republic"]
[Date "2023.09.09"]
[Round "3.4"]
[White "Roubal, Matyas"]
[Black "Krajicek, Matej"]
[Result "1-0"]
[TimeControl "20min+5s/move"]
[WhiteElo "1911"]
[BlackElo "1565"]

1. e4 {[%clk 00:20:08]} {[%emt 00:00:02]} c6 {[%clk 00:20:09]} {[%emt
00:00:01]} 2. Nc3 {[%clk 00:20:09]} {[%emt 00:00:04]} d5 {[%clk 00:20:12]}
{[%emt 00:00:02]} 3. Nf3 {[%clk 00:20:13]} Bg4 {[%clk 00:20:09]} {[%emt
00:00:10]} 4. h3 {[%clk 00:20:15]} {[%emt 00:00:03]} Bh5 {[%clk 00:20:03]}
{[%emt 00:00:10]} 5. exd5 {[%clk 00:20:19]} {[%emt 00:00:02]} cxd5 {[%clk
00:20:07]} {[%emt 00:00:01]} 6. g4 {[%clk 00:20:23]} Bg6 {[%clk 00:20:10]}
{[%emt 00:00:02]} 7. Bb5+ {[%clk 00:20:27]} {[%emt 00:00:01]} Nc6 {[%clk
00:20:04]} {[%emt 00:00:11]} 8. Ne5 {[%clk 00:20:31]} {[%emt 00:00:01]} Qd6
{[%clk 00:19:32]} {[%emt 00:00:37]} 9. d4 {[%clk 00:20:34]} {[%emt 00:00:03]}
f6 {[%clk 00:19:35]} {[%emt 00:00:01]} 10. Nxg6 {[%clk 00:20:12]} {[%emt
00:00:27]} hxg6 {[%clk 00:19:18]} {[%emt 00:00:22]} 11. Qd3 {[%clk 00:19:13]}
{[%emt 00:01:04]} O-O-O {[%clk 00:17:17]} {[%emt 00:02:06]} 12. Bxc6 {[%clk
00:18:40]} {[%emt 00:00:38]} Qxc6 {[%clk 00:16:35]} {[%emt 00:00:46]} 13. Qxg6
{[%clk 00:17:56]} {[%emt 00:00:49]} e5 {[%clk 00:16:29]} {[%emt 00:00:11]} 14.
Ne2 {[%clk 00:15:02]} {[%emt 00:03:00]} exd4 {[%clk 00:14:26]} {[%emt
00:02:08]} 15. Qf5+ {[%clk 00:15:00]} {[%emt 00:00:07]} Kb8 {[%clk 00:13:50]}
{[%emt 00:00:41]} 16. Bf4+ {[%clk 00:15:03]} {[%emt 00:00:01]} Ka8 {[%clk
00:11:50]} {[%emt 00:02:05]} 17. O-O-O {[%clk 00:15:05]} {[%emt 00:00:03]} Qa6
{[%clk 00:10:45]} {[%emt 00:01:11]} 18. Nxd4 {[%clk 00:13:40]} {[%emt
00:01:30]} Qxa2 {[%clk 00:06:40]} {[%emt 00:04:10]} 19. Ne6 {[%clk 00:12:39]}
{[%emt 00:01:06]} Qa1+ {[%clk 00:05:32]} {[%emt 00:01:13]} 20. Kd2 {[%clk
00:12:43]} {[%emt 00:00:01]} Bb4+ {[%clk 00:04:52]} {[%emt 00:00:45]} 21. Ke3
{[%clk 00:09:20]} {[%emt 00:03:28]} Qa5 {[%clk 00:01:03]} {[%emt 00:03:54]} 22.
Bc7 {[%clk 00:05:57]} {[%emt 00:03:28]} Bc5+ {[%clk 00:00:07]} {[%emt
00:01:01]} 23. Kf3 {[%clk 00:05:50]} {[%emt 00:00:12]} Bb6 {[%clk 00:00:11]}
{[%emt 00:00:02]} 24. Nxd8 {[%clk 00:05:40]} {[%emt 00:00:14]} Bxc7 {[%clk
00:00:14]} {[%emt 00:00:02]} 25. Qc8+ {[%clk 00:05:42]} {[%emt 00:00:03]} Bb8
{[%clk 00:00:18]} {[%emt 00:00:01]} 26. Qxb7# {[%clk 00:05:46]} {[%emt
00:00:02]} 1-0

[Event "MCR rapid mládeže 2023 U16"]
[Site "Harachov, Czech Republic"]
[Date "2023.09.09"]
[Round "3.5"]
[White "Martirosyan, David"]
[Black "Popov, Roman"]
[Result "1/2-1/2"]
[TimeControl "20min+5s/move"]
[WhiteElo "1861"]
[BlackElo "1751"]

1. c4 {[%clk 00:20:02]} {[%emt 00:00:07]} c6 {[%clk 00:20:04]} {[%emt
00:00:07]} 2. d4 {[%clk 00:20:04]} {[%emt 00:00:02]} d5 {[%clk 00:20:07]}
{[%emt 00:00:02]} 3. cxd5 {[%clk 00:19:56]} {[%emt 00:00:13]} cxd5 {[%clk
00:20:02]} {[%emt 00:00:10]} 4. Nf3 {[%clk 00:19:41]} {[%emt 00:00:20]} Nf6
{[%clk 00:19:47]} {[%emt 00:00:21]} 5. Nc3 {[%clk 00:19:31]} {[%emt 00:00:15]}
Nc6 {[%clk 00:19:35]} {[%emt 00:00:17]} 6. Bf4 {[%clk 00:19:12]} {[%emt
00:00:23]} Bf5 {[%clk 00:19:07]} {[%emt 00:00:33]} 7. e3 {[%clk 00:19:02]}
{[%emt 00:00:15]} e6 {[%clk 00:18:44]} {[%emt 00:00:29]} 8. Bd3 {[%clk
00:18:59]} {[%emt 00:00:07]} Bxd3 {[%clk 00:17:56]} {[%emt 00:00:53]} 9. Qxd3
{[%clk 00:18:49]} {[%emt 00:00:16]} Bd6 {[%clk 00:17:41]} {[%emt 00:00:20]} 10.
Bxd6 {[%clk 00:18:33]} {[%emt 00:00:20]} Qxd6 {[%clk 00:17:29]} {[%emt
00:00:19]} 11. O-O {[%clk 00:17:05]} {[%emt 00:01:33]} O-O {[%clk 00:16:04]}
{[%emt 00:01:29]} 12. h3 {[%clk 00:16:32]} {[%emt 00:00:38]} Rac8 {[%clk
00:15:42]} {[%emt 00:00:27]} 13. Rac1 {[%clk 00:15:43]} {[%emt 00:00:52]} Na5
{[%clk 00:14:21]} {[%emt 00:01:28]} 14. Ne5 {[%clk 00:15:14]} {[%emt 00:00:33]}
Nc4 {[%clk 00:12:09]} {[%emt 00:02:18]} 15. Nxc4 {[%clk 00:14:34]} {[%emt
00:00:46]} Rxc4 {[%clk 00:11:38]} {[%emt 00:00:36]} 16. Ne2 {[%clk 00:14:27]}
{[%emt 00:00:11]} Rfc8 {[%clk 00:11:22]} {[%emt 00:00:21]} 17. Rxc4 {[%clk
00:14:12]} {[%emt 00:00:20]} Rxc4 {[%clk 00:11:09]} {[%emt 00:00:18]} 18. Rc1
{[%clk 00:14:16]} {[%emt 00:00:01]} Qb4 {[%emt 00:01:20]} 19. Rxc4 {[%clk
00:13:57]} {[%emt 00:00:02]} dxc4 {[%clk 00:10:07]} {[%emt 00:00:14]} 20. Qc3
{[%clk 00:13:46]} {[%emt 00:00:17]} Nd5 {[%clk 00:09:58]} {[%emt 00:00:13]} 21.
Qxb4 {[%clk 00:13:36]} {[%emt 00:00:15]} Nxb4 {[%clk 00:10:01]} {[%emt
00:00:03]} 22. Nc3 {[%clk 00:13:35]} {[%emt 00:00:05]} Kf8 {[%clk 00:09:39]}
{[%emt 00:00:26]} 23. Kf1 {[%clk 00:13:31]} {[%emt 00:00:10]} Ke7 {[%clk
00:09:12]} {[%emt 00:00:31]} 24. Ke2 {[%clk 00:13:31]} {[%emt 00:00:06]} Nd3
{[%clk 00:07:54]} {[%emt 00:01:23]} 25. b3 {[%clk 00:13:02]} {[%emt 00:00:34]}
Nc1+ {[%clk 00:07:21]} {[%emt 00:00:37]} 26. Kd2 {[%clk 00:12:39]} {[%emt
00:00:27]} Nd3 {[%clk 00:07:20]} {[%emt 00:00:07]} 27. bxc4 {[%clk 00:12:05]}
{[%emt 00:00:39]} Nb2 {[%clk 00:05:11]} {[%emt 00:02:15]} 28. c5 {[%clk
00:11:26]} {[%emt 00:00:44]} Nc4+ {[%clk 00:04:59]} {[%emt 00:00:16]} 29. Kd3
{[%clk 00:11:19]} {[%emt 00:00:14]} Na5 {[%clk 00:04:19]} {[%emt 00:00:44]} 30.
d5 {[%clk 00:10:18]} {[%emt 00:01:08]} exd5 {[%clk 00:04:07]} {[%emt 00:00:16]}
31. Nxd5+ {[%clk 00:10:07]} {[%emt 00:00:15]} Ke6 {[%clk 00:03:52]} {[%emt
00:00:16]} 32. Kd4 {[%clk 00:08:39]} {[%emt 00:01:37]} Nc6+ {[%clk 00:03:42]}
{[%emt 00:00:16]} 33. Kc4 {[%clk 00:08:43]} {[%emt 00:00:01]} Na5+ {[%clk
00:03:16]} {[%emt 00:00:31]} 34. Kd4 {[%clk 00:08:42]} {[%emt 00:00:06]} Nc6+
{[%clk 00:03:16]} {[%emt 00:00:04]} 35. Kc4 {[%clk 00:08:45]} {[%emt 00:00:02]}
Na5+ {[%clk 00:03:15]} {[%emt 00:00:06]} 36. Kd4 {[%clk 00:08:48]} {[%emt
00:00:02]} Nc6+ {[%clk 00:03:15]} {[%emt 00:00:05]} 37. Ke4 {[%emt 00:00:07]}
Ke5+ 1/2-1/2

[Event "MCR rapid mládeže 2023 U16"]
[Site "Harachov, Czech Republic"]
[Date "2023.09.09"]
[Round "3.6"]
[White "Setina, Vaclav"]
[Black "Topencik, Bruno"]
[Result "0-1"]
[TimeControl "20min+5s/move"]
[WhiteElo "1876"]
[BlackElo "1451"]

1. e4 {[%clk 00:20:08]} {[%emt 00:00:01]} e6 {[%clk 00:20:09]} {[%emt
00:00:02]} 2. d4 {[%clk 00:19:51]} {[%emt 00:00:22]} d5 {[%clk 00:20:12]}
{[%emt 00:00:02]} 3. e5 {[%clk 00:19:55]} c5 {[%emt 00:00:03]} 4. c3 Nc6 {[%clk
00:20:18]} {[%emt 00:00:01]} 5. Nf3 {[%clk 00:20:04]} {[%emt 00:00:01]} Nge7
{[%clk 00:20:21]} {[%emt 00:00:02]} 6. Na3 {[%clk 00:19:58]} {[%emt 00:00:11]}
cxd4 {[%clk 00:20:18]} {[%emt 00:00:08]} 7. cxd4 {[%clk 00:20:02]} {[%emt
00:00:01]} Nf5 {[%clk 00:20:21]} {[%emt 00:00:01]} 8. Nc2 {[%clk 00:20:06]}
{[%emt 00:00:01]} Nb4 {[%clk 00:20:18]} {[%emt 00:00:08]} 9. Nxb4 {[%clk
00:19:39]} {[%emt 00:00:32]} Bxb4+ {[%clk 00:20:20]} {[%emt 00:00:02]} 10. Bd2
{[%clk 00:19:42]} {[%emt 00:00:03]} Bxd2+ {[%clk 00:20:16]} {[%emt 00:00:09]}
11. Qxd2 {[%clk 00:19:45]} {[%emt 00:00:02]} Bd7 {[%clk 00:20:14]} {[%emt
00:00:07]} 12. Bd3 {[%clk 00:19:44]} {[%emt 00:00:06]} Ne7 {[%clk 00:20:08]}
{[%emt 00:00:11]} 13. O-O {[%clk 00:19:40]} {[%emt 00:00:09]} Rc8 {[%clk
00:19:11]} {[%emt 00:01:02]} 14. Rac1 {[%clk 00:19:44]} {[%emt 00:00:01]} Ng6
{[%clk 00:17:32]} {[%emt 00:01:43]} 15. Rxc8 {[%clk 00:18:48]} {[%emt
00:01:01]} Bxc8 {[%clk 00:16:58]} {[%emt 00:00:40]} 16. Rc1 {[%clk 00:18:20]}
{[%emt 00:00:33]} Bd7 {[%clk 00:16:03]} {[%emt 00:01:00]} 17. Qb4 {[%clk
00:17:32]} {[%emt 00:00:53]} Bc6 {[%clk 00:15:13]} {[%emt 00:00:54]} 18. Bb5
{[%clk 00:17:21]} {[%emt 00:00:17]} Ne7 {[%clk 00:11:59]} {[%emt 00:03:18]} 19.
Bxc6+ {[%clk 00:17:19]} {[%emt 00:00:08]} bxc6 {[%clk 00:11:55]} {[%emt
00:00:09]} 20. Qa3 {[%clk 00:13:34]} {[%emt 00:03:49]} Qd7 {[%clk 00:11:08]}
{[%emt 00:00:52]} 21. Qd6 {[%clk 00:12:59]} {[%emt 00:00:40]} Qb7 {[%clk
00:08:59]} {[%emt 00:02:10]} 22. b4 {[%clk 00:08:26]} {[%emt 00:04:42]} O-O
{[%clk 00:07:10]} {[%emt 00:01:53]} 23. Qc5 {[%clk 00:08:30]} {[%emt 00:00:02]}
Rc8 {[%clk 00:05:58]} {[%emt 00:01:14]} 24. a3 {[%clk 00:08:22]} {[%emt
00:00:16]} h6 {[%clk 00:05:41]} {[%emt 00:00:22]} 25. g3 {[%clk 00:08:23]}
{[%emt 00:00:03]} a6 {[%clk 00:04:37]} {[%emt 00:01:09]} 26. Kg2 {[%clk
00:08:25]} {[%emt 00:00:03]} Nf5 {[%clk 00:04:33]} {[%emt 00:00:09]} 27. Nd2
{[%clk 00:06:11]} {[%emt 00:02:20]} Qb5 {[%clk 00:03:46]} {[%emt 00:00:51]} 28.
Qxb5 {[%clk 00:06:11]} {[%emt 00:00:07]} axb5 {[%clk 00:03:48]} {[%emt
00:00:02]} 29. Nb3 {[%clk 00:05:52]} {[%emt 00:00:24]} Kf8 {[%clk 00:03:37]}
{[%emt 00:00:16]} 30. g4 {[%clk 00:05:40]} {[%emt 00:00:17]} Ne7 {[%clk
00:03:35]} {[%emt 00:00:08]} 31. Na5 {[%clk 00:05:40]} {[%emt 00:00:05]} Rc7
{[%clk 00:02:31]} {[%emt 00:01:09]} 32. Rc3 {[%clk 00:05:32]} {[%emt 00:00:13]}
Ke8 {[%clk 00:02:28]} {[%emt 00:00:06]} 33. h4 {[%clk 00:04:38]} {[%emt
00:01:00]} Kd7 {[%clk 00:02:19]} {[%emt 00:00:14]} 34. Rf3 {[%clk 00:04:39]}
{[%emt 00:00:05]} Ke8 {[%clk 00:02:20]} {[%emt 00:00:03]} 35. Rc3 {[%clk
00:04:05]} {[%emt 00:00:39]} Kd7 {[%clk 00:02:22]} {[%emt 00:00:03]} 36. f4
{[%clk 00:04:09]} g6 {[%clk 00:01:49]} {[%emt 00:00:39]} 37. Rg3 {[%clk
00:02:38]} {[%emt 00:01:37]} Rc8 {[%clk 00:01:37]} {[%emt 00:00:16]} 38. Nb7
{[%clk 00:02:16]} {[%emt 00:00:27]} Rf8 {[%clk 00:01:19]} {[%emt 00:00:23]} 39.
Nd6 {[%clk 00:02:06]} {[%emt 00:00:15]} Nc8 {[%clk 00:01:10]} {[%emt 00:00:13]}
40. Nxc8 {[%clk 00:01:54]} {[%emt 00:00:19]} Rxc8 {[%clk 00:01:13]} {[%emt
00:00:02]} 41. h5 {[%clk 00:01:57]} {[%emt 00:00:02]} Ke7 {[%clk 00:00:46]}
{[%emt 00:00:33]} 42. Rh3 {[%clk 00:01:44]} {[%emt 00:00:19]} Rh8 {[%clk
00:00:39]} {[%emt 00:00:12]} 43. g5 {[%clk 00:00:58]} {[%emt 00:00:51]} hxg5
{[%clk 00:00:26]} {[%emt 00:00:18]} 44. hxg6 {[%clk 00:01:01]} {[%emt
00:00:02]} Rg8 {[%clk 00:00:11]} {[%emt 00:00:20]} 45. gxf7 {[%clk 00:00:50]}
{[%emt 00:00:16]} Kxf7 {[%clk 00:00:12]} {[%emt 00:00:04]} 46. f5 {[%clk
00:00:16]} {[%emt 00:00:39]} exf5 {[%clk 00:00:09]} {[%emt 00:00:08]} 47. Rh6
{[%clk 00:00:19]} {[%emt 00:00:02]} Rg6 {[%clk 00:00:09]} {[%emt 00:00:05]} 48.
Rh7+ {[%clk 00:00:09]} {[%emt 00:00:15]} Rg7 {[%clk 00:00:12]} {[%emt
00:00:02]} 49. Rh8 {[%clk 00:00:10]} {[%emt 00:00:03]} Rg8 {[%clk 00:00:09]}
{[%emt 00:00:09]} 50. e6+ {[%clk 00:00:13]} {[%emt 00:00:02]} Kg7 {[%clk
00:00:11]} {[%emt 00:00:03]} 51. Rh1 {[%emt 00:00:10]} Re8 {[%clk 00:00:12]}
{[%emt 00:00:03]} 52. Re1 {[%clk 00:00:09]} {[%emt 00:00:06]} Kf6 {[%clk
00:00:16]} {[%emt 00:00:01]} 53. Kf3 {[%clk 00:00:11]} {[%emt 00:00:03]} Rxe6
{[%clk 00:00:20]} {[%emt 00:00:01]} 54. Rh1 {[%clk 00:00:16]} Kg7 {[%clk
00:00:20]} {[%emt 00:00:05]} 55. Rc1 {[%clk 00:00:19]} {[%emt 00:00:02]} Kg6
{[%clk 00:00:16]} {[%emt 00:00:10]} 56. Rc2 {[%clk 00:00:23]} {[%emt 00:00:01]}
g4+ {[%clk 00:00:17]} {[%emt 00:00:04]} 57. Kg3 {[%clk 00:00:26]} {[%emt
00:00:02]} Kg5 {[%clk 00:00:20]} {[%emt 00:00:01]} 58. Rf2 {[%clk 00:00:30]}
f4+ {[%clk 00:00:21]} {[%emt 00:00:05]} 59. Kg2 {[%clk 00:00:33]} {[%emt
00:00:03]} g3 {[%clk 00:00:19]} {[%emt 00:00:07]} 60. Rf1 {[%clk 00:00:29]}
{[%emt 00:00:09]} Kg4 {[%clk 00:00:21]} {[%emt 00:00:03]} 61. Rh1 {[%clk
00:00:32]} f3+ {[%clk 00:00:24]} {[%emt 00:00:04]} 0-1

[Event "MCR rapid mládeže 2023 U16"]
[Site "Harachov, Czech Republic"]
[Date "2023.09.09"]
[Round "3.7"]
[White "Novotny, Dominik"]
[Black "Sotek, Simon"]
[Result "1/2-1/2"]
[TimeControl "20min+5s/move"]
[WhiteElo "1707"]
[BlackElo "1526"]

1. e4 {[%clk 00:20:07]} {[%emt 00:00:01]} d5 {[%clk 00:20:06]} {[%emt
00:00:04]} 2. exd5 {[%clk 00:20:10]} {[%emt 00:00:03]} Nf6 {[%clk 00:20:11]} 3.
Bb5+ {[%clk 00:20:07]} {[%emt 00:00:09]} Bd7 {[%clk 00:20:12]} {[%emt
00:00:03]} 4. Be2 {[%clk 00:19:38]} {[%emt 00:00:33]} Nxd5 {[%clk 00:20:09]}
{[%emt 00:00:09]} 5. Nc3 {[%clk 00:19:34]} {[%emt 00:00:09]} Bc6 {[%clk
00:20:05]} {[%emt 00:00:08]} 6. Nxd5 {[%clk 00:19:18]} {[%emt 00:00:22]} Bxd5
{[%clk 00:20:07]} {[%emt 00:00:03]} 7. Bf3 {[%clk 00:19:20]} {[%emt 00:00:02]}
e5 {[%clk 00:19:52]} {[%emt 00:00:21]} 8. d3 {[%clk 00:18:30]} {[%emt
00:00:55]} Nc6 {[%clk 00:19:38]} {[%emt 00:00:19]} 9. Be3 {[%clk 00:17:11]}
{[%emt 00:01:25]} Be7 {[%clk 00:19:18]} {[%emt 00:00:25]} 10. Bxd5 {[%clk
00:13:47]} {[%emt 00:03:30]} Qxd5 {[%clk 00:19:20]} {[%emt 00:00:02]} 11. Qf3
{[%clk 00:13:39]} {[%emt 00:00:13]} Qb5 {[%clk 00:18:23]} {[%emt 00:01:02]} 12.
O-O-O {[%clk 00:12:49]} {[%emt 00:00:55]} Bf6 {[%clk 00:17:49]} {[%emt
00:00:39]} 13. Ne2 {[%clk 00:12:37]} {[%emt 00:00:17]} O-O {[%clk 00:17:28]}
{[%emt 00:00:26]} 14. Nc3 {[%clk 00:12:10]} {[%emt 00:00:32]} Qa5 {[%clk
00:16:57]} {[%emt 00:00:36]} 15. Qd5 {[%clk 00:09:13]} {[%emt 00:03:02]} Rad8
{[%clk 00:13:57]} {[%emt 00:03:04]} 16. Qxa5 {[%clk 00:08:53]} {[%emt
00:00:26]} Nxa5 {[%clk 00:13:14]} {[%emt 00:00:49]} 17. Nb5 {[%clk 00:05:44]}
{[%emt 00:03:13]} a6 {[%clk 00:08:10]} {[%emt 00:05:09]} 18. Nxc7 {[%clk
00:04:59]} {[%emt 00:00:49]} Rd7 {[%clk 00:07:02]} {[%emt 00:01:13]} 19. Bb6
{[%clk 00:03:35]} {[%emt 00:01:30]} Nc6 {[%clk 00:07:06]} {[%emt 00:00:01]} 20.
c4 {[%clk 00:02:23]} {[%emt 00:01:17]} Nb4 {[%clk 00:06:45]} {[%emt 00:00:25]}
21. Bc5 {[%clk 00:01:24]} {[%emt 00:01:05]} Nxd3+ {[%clk 00:06:06]} {[%emt
00:00:44]} 22. Rxd3 {[%clk 00:01:25]} {[%emt 00:00:04]} Rxd3 {[%clk 00:06:10]}
{[%emt 00:00:01]} 23. Bxf8 {[%clk 00:01:26]} {[%emt 00:00:04]} Kxf8 {[%clk
00:06:13]} {[%emt 00:00:01]} 24. Rd1 {[%clk 00:01:23]} {[%emt 00:00:09]} Rxd1+
{[%clk 00:04:13]} {[%emt 00:02:06]} 25. Kxd1 {[%clk 00:01:26]} {[%emt
00:00:01]} e4 {[%clk 00:04:16]} {[%emt 00:00:02]} 26. Ke2 {[%clk 00:01:13]}
{[%emt 00:00:18]} Bxb2 {[%clk 00:04:08]} {[%emt 00:00:13]} 27. Ke3 {[%clk
00:01:12]} {[%emt 00:00:05]} Be5 {[%clk 00:03:24]} {[%emt 00:00:50]} 28. Nd5
{[%clk 00:00:42]} {[%emt 00:00:35]} f5 {[%clk 00:03:26]} {[%emt 00:00:02]} 29.
h3 {[%clk 00:00:40]} {[%emt 00:00:08]} Ke8 {[%clk 00:02:49]} {[%emt 00:00:41]}
30. g4 {[%clk 00:00:24]} {[%emt 00:00:22]} g6 {[%clk 00:02:42]} {[%emt
00:00:12]} 31. gxf5 {[%clk 00:00:14]} {[%emt 00:00:15]} gxf5 {[%clk 00:02:46]}
{[%emt 00:00:02]} 32. f3 {[%clk 00:00:13]} {[%emt 00:00:06]} exf3 {[%clk
00:02:41]} {[%emt 00:00:09]} 33. Kxf3 {[%clk 00:00:16]} {[%emt 00:00:02]} Kd7
{[%clk 00:02:42]} {[%emt 00:00:03]} 34. Ne3 {[%clk 00:00:11]} {[%emt 00:00:11]}
f4 {[%clk 00:02:13]} {[%emt 00:00:34]} 35. Nd5 {[%clk 00:00:10]} {[%emt
00:00:07]} Kd6 {[%clk 00:01:42]} {[%emt 00:00:35]} 36. Nxf4 {[%clk 00:00:13]}
{[%emt 00:00:02]} Bxf4 {[%clk 00:00:16]} {[%emt 00:01:31]} 37. Kxf4 {[%clk
00:00:16]} {[%emt 00:00:01]} Kc5 {[%clk 00:00:20]} 38. Kg5 {[%clk 00:00:18]}
{[%emt 00:00:05]} Kxc4 {[%clk 00:00:24]} {[%emt 00:00:01]} 39. Kh6 {[%clk
00:00:22]} a5 {[%clk 00:00:28]} 40. Kxh7 {[%emt 00:00:03]} a4 41. h4 {[%clk
00:00:26]} {[%emt 00:00:03]} b5 {[%clk 00:00:38]} 42. h5 {[%clk 00:00:28]}
{[%emt 00:00:02]} b4 {[%clk 00:00:42]} {[%emt 00:00:01]} 43. h6 {[%clk
00:00:31]} {[%emt 00:00:02]} b3 {[%clk 00:00:45]} {[%emt 00:00:03]} 44. axb3+
{[%clk 00:00:25]} {[%emt 00:00:10]} axb3 {[%emt 00:00:01]} 45. Kg8 {[%clk
00:00:26]} {[%emt 00:00:03]} b2 {[%clk 00:00:52]} {[%emt 00:00:02]} 46. h7
{[%clk 00:00:29]} {[%emt 00:00:01]} b1=Q {[%clk 00:00:56]} {[%emt 00:00:01]} 47.
h8=Q {[%emt 00:00:03]} 1/2-1/2

[Event "MCR rapid mládeže 2023 U16"]
[Site "Harachov, Czech Republic"]
[Date "2023.09.09"]
[Round "3.8"]
[White "Jasso, Matej"]
[Black "Soucek, Andrej"]
[Result "1-0"]
[TimeControl "20min+5s/move"]
[WhiteElo "1794"]
[BlackElo "1589"]

1. e4 {[%clk 00:20:06]} {[%emt 00:00:03]} c5 {[%clk 00:20:08]} {[%emt
00:00:02]} 2. Nf3 {[%clk 00:20:10]} {[%emt 00:00:02]} Nc6 {[%clk 00:20:11]}
{[%emt 00:00:02]} 3. d4 {[%clk 00:20:13]} {[%emt 00:00:02]} cxd4 {[%clk
00:20:15]} {[%emt 00:00:01]} 4. Nxd4 {[%clk 00:20:16]} {[%emt 00:00:02]} Nf6
{[%clk 00:20:18]} {[%emt 00:00:02]} 5. Nc3 {[%clk 00:20:19]} {[%emt 00:00:02]}
e5 {[%clk 00:20:21]} {[%emt 00:00:02]} 6. Ndb5 {[%clk 00:20:22]} {[%emt
00:00:03]} d6 {[%clk 00:20:25]} {[%emt 00:00:01]} 7. Bg5 {[%clk 00:20:25]}
{[%emt 00:00:01]} a6 {[%clk 00:20:28]} {[%emt 00:00:03]} 8. Na3 {[%clk
00:20:26]} {[%emt 00:00:03]} b5 {[%clk 00:20:30]} {[%emt 00:00:03]} 9. Nd5
{[%clk 00:20:30]} {[%emt 00:00:02]} Be7 {[%clk 00:20:30]} {[%emt 00:00:04]} 10.
Bxf6 {[%clk 00:20:33]} {[%emt 00:00:02]} Bxf6 {[%clk 00:20:34]} {[%emt
00:00:01]} 11. c3 {[%clk 00:20:37]} {[%emt 00:00:01]} Bg5 {[%clk 00:20:30]}
{[%emt 00:00:08]} 12. h4 {[%clk 00:20:39]} {[%emt 00:00:02]} Bh6 {[%clk
00:20:33]} {[%emt 00:00:02]} 13. Nc2 {[%clk 00:20:42]} {[%emt 00:00:02]} Rb8
{[%clk 00:20:22]} {[%emt 00:00:16]} 14. g4 {[%clk 00:20:44]} {[%emt 00:00:03]}
Bf4 {[%clk 00:20:09]} {[%emt 00:00:18]} 15. Qf3 {[%clk 00:20:32]} {[%emt
00:00:17]} g5 {[%clk 00:19:29]} {[%emt 00:00:45]} 16. hxg5 {[%clk 00:19:34]}
{[%emt 00:01:04]} Qxg5 {[%clk 00:18:18]} {[%emt 00:01:15]} 17. Be2 {[%clk
00:16:25]} {[%emt 00:03:14]} Be6 {[%clk 00:16:19]} {[%emt 00:02:05]} 18. Rh5
{[%clk 00:14:45]} {[%emt 00:01:45]} Qg6 {[%clk 00:14:45]} {[%emt 00:01:39]} 19.
Nxf4 {[%clk 00:14:02]} {[%emt 00:00:48]} exf4 {[%clk 00:14:47]} {[%emt
00:00:03]} 20. Qxf4 {[%clk 00:14:06]} {[%emt 00:00:01]} Ne5 {[%clk 00:14:42]}
{[%emt 00:00:10]} 21. Rg5 {[%clk 00:14:02]} {[%emt 00:00:09]} Qxg5 {[%clk
00:12:35]} {[%emt 00:02:13]} 22. Qxg5 {[%clk 00:14:05]} {[%emt 00:00:02]} Bc4
{[%clk 00:12:38]} {[%emt 00:00:02]} 23. Nd4 {[%clk 00:13:06]} {[%emt 00:01:03]}
Ra8 {[%clk 00:11:48]} {[%emt 00:00:47]} 1-0